fUSD/lending_fUSD_20260203
["ID","MTS","AMOUNT","RATE_DAILY","PERIOD"]
[404413452,1770118239798,-792.54,0.00011462,2]
[404413453,1770118239808,-166.66,0.00011507,2]
[404413454,1770118239817,-150.01122841,0.0001166,2]
[404413455,1770118239827,-792.54,0.00011736,2]
[404413456,1770118239836,-5408.27662586,0.00011766,2]
[404413457,1770118239846,-2662.46744209,0.00011947,2]
[404413458,1770118239855,-792.54,0.0001201,2]
[404413459,1770118239865,-1852.42,0.00012053,2]
[404413460,1770118239875,-6453.0,0.00012211,2]
[404413461,1770118239884,-176.57735323,0.00012241,2]
[404413462,1770118239894,-465.99042889,0.00012241,2]
[404413463,1770118239904,-822.06235217,0.00012241,2]
[404413464,1770118239913,-792.54,0.00012284,2]
[404413465,1770118239923,-151.0,0.00012313,2]
[404413466,1770118239932,-151.0,0.00012313,2]
[404413467,1770118239942,-151.0,0.00012313,2]
[404413468,1770118239951,-151.0,0.00012313,2]
[404413469,1770118239961,-151.0,0.00012364,2]
[404413470,1770118239971,-151.0,0.00012364,2]
[404413471,1770118239980,-18050.3,0.00012423,2]
[404413472,1770118239990,-5408.27662586,0.00012533,2]
[404413473,1770118240000,-792.54,0.00012558,2]
[404413474,1770118240010,-151.0,0.00012618,2]
[404413475,1770118240019,-151.0,0.00012618,2]
[404413476,1770118240030,-193732.81044148,0.0001269,2]
[404413477,1770118240039,-267.46801116,0.00012692,2]
[404413478,1770118240049,-194.87435744,0.00012692,2]
[404413479,1770118240059,-792.54,0.00012832,2]
[404413480,1770118240069,-1000.0,0.0001289,2]
[404413481,1770118240079,-4434.56277461,0.00013,2]
[404413482,1770118240089,-5354.65944007,0.0001305,2]
[404413483,1770118240100,-355.0,0.00013068,2]
[404413484,1770118240109,-792.54,0.00013105,2]
[404413485,1770118240119,-5408.27662586,0.00013299,2]
[404413486,1770118240128,-792.54,0.00013379,2]
[404413487,1770118240138,-35766.0,0.00013391,2]
[404413488,1770118240148,-3240.0,0.00013425,2]
[404413489,1770118240158,-3853.0,0.00013432,2]
[404413490,1770118240167,-2662.46744209,0.00013436,2]
[404413491,1770118240177,-183.76045452,0.000135,2]
[404413492,1770118240187,-792.54,0.00013653,2]
[404413493,1770118240197,-500.0,0.00013698,2]
[404413494,1770118240207,-501.81901913,0.00013698,2]
[404413495,1770118240216,-500.0,0.00013698,2]
[404413497,1770118240226,-509.06540724,0.00013698,2]
[404413499,1770118240236,-500.0,0.00013698,2]
[404413500,1770118240246,-500.0,0.00013698,2]
[404413501,1770118240255,-500.0,0.00013698,2]
[404413502,1770118240265,-500.0,0.00013698,2]
[404413503,1770118240274,-340.45778603,0.00013698,2]
[404413504,1770118240284,-500.0,0.00013698,2]
[404413505,1770118240294,-500.0,0.00013698,2]
[404413506,1770118240304,-500.0,0.00013698,2]
[404413507,1770118240314,-438.97921379,0.00013698,2]
[404413508,1770118240327,-452.02134495,0.00013698,2]
[404413509,1770118240338,-199.38200897,0.00013698,2]
[404413510,1770118240348,-500.0,0.00013698,2]
[404413511,1770118240358,-500.0,0.00013698,2]
[404413512,1770118240368,-500.0,0.00013698,2]
[404413513,1770118240378,-500.0,0.00013698,2]
[404413514,1770118240388,-378.56522147,0.00013698,2]
[404413515,1770118240398,-500.0,0.00013698,2]
[404413516,1770118240408,-500.0,0.00013698,2]
[404413517,1770118240418,-500.0,0.00013698,2]
[404413518,1770118240428,-500.0,0.00013698,2]
[404413519,1770118240437,-545.58231824,0.00013698,2]
[404413520,1770118240447,-500.0,0.00013698,2]
[404413521,1770118240456,-500.0,0.00013698,2]
[404413522,1770118240466,-500.0,0.00013698,2]
[404413523,1770118240475,-500.0,0.00013698,2]
[404413524,1770118240485,-500.0,0.00013698,2]
[404413525,1770118240494,-500.0,0.00013698,2]
[404413526,1770118240504,-500.0,0.00013698,2]
[404413527,1770118240514,-500.0,0.00013698,2]
[404413528,1770118240524,-500.0,0.00013698,2]
[404413529,1770118240533,-222.83714718,0.00013698,2]
[404413530,1770118240543,-500.0,0.00013698,2]
[404413531,1770118240552,-500.0,0.00013698,2]
[404413532,1770118240562,-439.60873549,0.00013698,2]
[404413533,1770118240571,-500.0,0.00013698,2]
[404413534,1770118240581,-500.0,0.00013698,2]
[404413535,1770118240591,-500.0,0.00013698,2]
[404413536,1770118240600,-500.0,0.00013698,2]
[404413537,1770118240610,-500.0,0.00013698,2]
[404413538,1770118240619,-500.0,0.00013698,2]
[404413539,1770118240629,-500.0,0.00013698,2]
[404413540,1770118240638,-500.0,0.00013698,2]
[404413541,1770118240648,-371.76186134,0.00013698,2]
[404413542,1770118240658,-552.61203619,0.00013698,2]
[404413543,1770118240667,-500.0,0.00013698,2]
[404413544,1770118240677,-500.0,0.00013698,2]
[404413545,1770118240687,-500.0,0.00013698,2]
[404413546,1770118240696,-500.0,0.00013698,2]
[404413547,1770118240706,-500.0,0.00013698,2]
[404413548,1770118240715,-500.0,0.00013698,2]
[404413549,1770118240726,-558.31479011,0.00013698,2]
[404413550,1770118240736,-200.0,0.00013699,2]
[404413551,1770118240746,-500.0,0.00013699,2]
[404413552,1770118240755,-5573.74,0.00013699,2]
[404413553,1770118240766,-500.0,0.000137,2]
[404413554,1770118240778,-260.20893212,0.000137,2]
[404413555,1770118240788,-500.0,0.000137,2]
[404413556,1770118240797,-500.0,0.000137,2]
[404413557,1770118240806,-500.0,0.000137,2]
[404413558,1770118240816,-500.0,0.000137,2]
[404413559,1770118240826,-160.0,0.00013908,2]
[404413560,1770118240835,-792.64834379,0.00013927,2]
[404413561,1770118240844,-5408.27662586,0.00014066,2]
[404413562,1770118240854,-150.01122841,0.00014153,2]
[404413563,1770118240863,-44956.68910458,0.00014156,2]
[404413564,1770118240873,-1000.0,0.00014248,2]
[404413565,1770118240882,-1000.0,0.00014248,2]
[404413566,1770118240891,-500.0,0.00014248,2]
[404413567,1770118240901,-322.6107,0.00014279,2]
[404413568,1770118240912,-578.20924308,0.00014279,2]
[404413569,1770118240922,-200.0,0.00014279,2]
[404413570,1770118240932,-174.61919141,0.00014279,2]
[404413571,1770118240943,-209.40437684,0.00014279,2]
[404413572,1770118240953,-721.12765535,0.00014279,2]
[404413573,1770118240962,-500.0,0.00014279,2]
[404413574,1770118240972,-500.0,0.00014279,2]
[404413575,1770118240982,-151.0,0.00014279,2]
[404413576,1770118240991,-500.0,0.00014279,2]
[404413577,1770118241001,-156.587,0.00014279,2]
[404413578,1770118241011,-500.0,0.00014279,2]
[404413579,1770118241020,-162.380719,0.00014279,2]
[404413580,1770118241031,-500.0,0.00014279,2]
[404413581,1770118241041,-157.73690742,0.00014279,2]
[404413582,1770118241051,-500.0,0.00014279,2]
[404413583,1770118241060,-500.0,0.00014279,2]
[404413584,1770118241071,-500.0,0.00014279,2]
[404413585,1770118241080,-500.0,0.00014279,2]
[404413586,1770118241089,-500.0,0.00014279,2]
[404413587,1770118241099,-500.0,0.00014279,2]
[404413588,1770118241108,-217.15233878,0.00014334,2]
[404413589,1770118241118,-225.18697532,0.00014389,2]
[404413590,1770118241128,-10332.61714049,0.0001439,2]
[404413591,1770118241139,-233.51889341,0.00014444,2]
[404413592,1770118241149,-242.15909246,0.00014499,2]
[404413593,1770118241159,-251.11897888,0.00014554,2]
[404413594,1770118241169,-260.4103811,0.00014609,2]
[404413595,1770118241178,-270.0455652,0.00014664,2]
[404413596,1770118241189,-500.0,0.00014685,2]
[404413597,1770118241198,-280.03725112,0.00014719,2]
[404413598,1770118241208,-290.39862941,0.00014774,2]
[404413599,1770118241218,-495.7739334,0.00014796,2]
[404413600,1770118241228,-369.98194845,0.00014796,2]
[404413601,1770118241238,-200.0,0.00014827,2]
[404413602,1770118241248,-181.08010149,0.00014827,2]
[404413603,1770118241258,-301.1433787,0.00014829,2]
[404413604,1770118241268,-5408.27662586,0.00014833,2]
[404413605,1770118241277,-256.5,0.00014914,2]
[404413606,1770118241287,-2662.46744209,0.00014924,2]
[404413607,1770118241296,-2051.98803165,0.00015,2]
[404413608,1770118241307,-2141.537179,0.00015,14]
[404413609,1770118241317,-7988.62760331,0.00015,2]
[404413610,1770118241327,-596815.59333351,0.00015,3]
[404413611,1770118241340,-221.5122,0.00015,2]
[404413612,1770118241349,-900.0,0.00015068,2]
[404413613,1770118241359,-200.0,0.00015375,2]
[404413614,1770118241369,-187.78006525,0.00015375,2]
[404413615,1770118241378,-150.01122841,0.00015399,2]
[404413616,1770118241388,-361.84102799,0.00015538,2]
[404413617,1770118241397,-341.83713414,0.00015562,2]
[404413618,1770118241408,-5408.27662586,0.000156,2]
[404413619,1770118241419,-50996.65745629,0.00015607,2]
[404413620,1770118241429,-334.5472959,0.00015648,2]
[404413621,1770118241439,-150.0,0.00015747,7]
[404413622,1770118241449,-374.613885,0.00015747,7]
[404413623,1770118241459,-599.227771,0.00015747,7]
[404413624,1770118241468,-823.841657,0.00015747,7]
[404413625,1770118241479,-1048.455543,0.00015747,7]
[404413626,1770118241488,-1273.069429,0.00015747,7]
[404413627,1770118241498,-1497.683314,0.00015747,7]
[404413628,1770118241507,-1722.2972,0.00015747,7]
[404413629,1770118241516,-1946.911086,0.00015747,7]
[404413630,1770118241526,-2171.524972,0.00015747,7]
[404413631,1770118241535,-1100.0,0.00015808,2]
[404413632,1770118241545,-1229.75611453,0.00015841,2]
[404413633,1770118241555,-500.0,0.00015866,2]
[404413634,1770118241565,-500.0,0.00015918,2]
[404413635,1770118241574,-1000.0,0.00015918,2]
[404413636,1770118241584,-200.0,0.00015923,2]
[404413637,1770118241594,-194.72792766,0.00015923,2]
[404413638,1770118241603,-5000.0,0.0001596,2]
[404413639,1770118241613,-160.0,0.00016,3]
[404413640,1770118241623,-1986954.52354461,0.00016,4]
[404413641,1770118241632,-151.0,0.00016,2]
[404413642,1770118241642,-151.0,0.00016,2]
[404413643,1770118241651,-151.0,0.00016,2]
[404413644,1770118241661,-256.701042,0.00016,2]
[404413645,1770118241671,-151.0,0.00016,2]
[404413646,1770118241680,-1783.437104,0.00016,2]
[404413647,1770118241689,-1783.437104,0.00016,2]
[404413648,1770118241699,-1500.0,0.00016,2]
[404413649,1770118241708,-1783.437104,0.00016,2]
[404413650,1770118241718,-1783.437104,0.00016,2]
[404413651,1770118241727,-1500.0,0.00016082,2]
[404413652,1770118241736,-9999.99,0.00016116,2]
[404413653,1770118241746,-5000.00134696,0.000162,5]
[404413654,1770118241756,-616.0,0.00016331,2]
[404413655,1770118241765,-3481.0,0.00016331,2]
[404413656,1770118241775,-200.0,0.0001634,2]
[404413657,1770118241784,-800.0,0.00016356,2]
[404413658,1770118241794,-5408.27662586,0.00016366,2]
[404413659,1770118241803,-256.5,0.00016402,2]
[404413660,1770118241812,-1084.09055279,0.00016411,2]
[404413661,1770118241822,-2662.46744209,0.00016412,2]
[404413662,1770118241831,-471.47764088,0.0001643,2]
[404413663,1770118241840,-775.48,0.00016438,2]
[404413664,1770118241850,-457.87,0.00016438,2]
[404413665,1770118241859,-457.87,0.00016438,3]
[404413666,1770118241868,-457.87,0.00016438,4]
[404413667,1770118241878,-457.87,0.00016438,5]
[404413668,1770118241887,-457.87,0.00016438,6]
[404413669,1770118241897,-457.87,0.00016438,7]
[404413670,1770118241906,-457.87,0.00016438,8]
[404413671,1770118241915,-457.87,0.00016438,9]
[404413672,1770118241924,-457.87,0.00016438,10]
[404413673,1770118241934,-457.87,0.00016438,11]
[404413674,1770118241943,-457.87,0.00016438,12]
[404413675,1770118241953,-457.87,0.00016438,13]
[404413676,1770118241962,-457.87,0.00016438,14]
[404413677,1770118241972,-457.87,0.00016438,15]
[404413678,1770118241981,-457.87,0.00016438,16]
[404413679,1770118241990,-900.0,0.00016438,2]
[404413680,1770118242000,-948.911815,0.00016438,2]
[404413681,1770118242010,-948.911815,0.00016438,2]
[404413682,1770118242020,-948.911815,0.00016438,2]
[404413683,1770118242029,-948.911815,0.00016438,2]
[404413684,1770118242039,-200.0,0.00016438,2]
[404413685,1770118242048,-800.0,0.00016438,2]
[404413686,1770118242057,-1725.90149928,0.00016444,2]
[404413687,1770118242067,-200.0,0.00016471,2]
[404413688,1770118242076,-201.93286099,0.00016471,2]
[404413689,1770118242087,-2467.88,0.0001649,2]
[404413690,1770118242097,-1000.0,0.00016515,2]
[404413691,1770118242108,-216.32,0.00016552,2]
[404413692,1770118242117,-360.83984207,0.000166,2]
[404413693,1770118242126,-30000.0,0.00016625,2]
[404413694,1770118242135,-150.01122841,0.00016645,2]
[404413695,1770118242144,-165.71,0.00016712,2]
[404413696,1770118242154,-50996.65745629,0.00016754,2]
[404413697,1770118242163,-150.0,0.00016768,7]
[404413698,1770118242173,-447.236958,0.00016768,7]
[404413699,1770118242182,-744.473917,0.00016768,7]
[404413700,1770118242191,-1041.710876,0.00016768,7]
[404413701,1770118242200,-1338.947835,0.00016768,7]
[404413702,1770118242210,-1636.184793,0.00016768,7]
[404413703,1770118242219,-1933.421752,0.00016768,7]
[404413704,1770118242228,-2230.658711,0.00016768,7]
[404413705,1770118242237,-2527.89567,0.00016768,7]
[404413706,1770118242247,-2825.132628,0.00016768,7]
[404413707,1770118242256,-1000.0,0.00016783,7]
[404413708,1770118242266,-200.0,0.00016983,2]
[404413709,1770118242276,-500.0,0.00017,7]
[404413710,1770118242285,-500.0,0.00017,7]
[404413711,1770118242295,-500.0,0.00017,7]
[404413712,1770118242305,-500.0,0.00017,7]
[404413713,1770118242314,-500.0,0.00017,7]
[404413714,1770118242329,-500.0,0.00017,7]
[404413715,1770118242349,-500.0,0.00017,7]
[404413716,1770118242358,-500.0,0.00017,7]
[404413717,1770118242368,-500.0,0.00017,7]
[404413718,1770118242378,-500.0,0.00017,7]
[404413719,1770118242389,-500.0,0.00017,7]
[404413720,1770118242398,-500.0,0.00017,7]
[404413721,1770118242410,-500.0,0.00017,7]
[404413722,1770118242420,-500.0,0.00017,7]
[404413723,1770118242429,-500.0,0.00017,7]
[404413724,1770118242439,-500.0,0.00017,7]
[404413725,1770118242451,-500.0,0.00017,7]
[404413726,1770118242462,-500.0,0.00017,7]
[404413727,1770118242471,-500.0,0.00017,7]
[404413728,1770118242481,-500.0,0.00017,7]
[404413729,1770118242492,-500.0,0.00017,7]
[404413730,1770118242503,-500.0,0.00017,7]
[404413731,1770118242512,-500.0,0.00017,7]
[404413733,1770118242521,-500.0,0.00017,7]
[404413735,1770118242531,-500.0,0.00017,7]
[404413736,1770118242540,-500.0,0.00017,7]
[404413737,1770118242550,-500.0,0.00017,7]
[404413738,1770118242559,-500.0,0.00017,7]
[404413739,1770118242568,-500.0,0.00017,7]
[404413740,1770118242577,-500.0,0.00017,7]
[404413741,1770118242587,-500.0,0.00017,7]
[404413742,1770118242600,-500.0,0.00017,7]
[404413743,1770118242609,-500.0,0.00017,7]
[404413744,1770118242618,-500.0,0.00017,7]
[404413745,1770118242627,-500.0,0.00017,7]
[404413746,1770118242637,-500.0,0.00017,7]
[404413747,1770118242646,-500.0,0.00017,7]
[404413748,1770118242655,-500.0,0.00017,7]
[404413749,1770118242664,-500.0,0.00017,7]
[404413750,1770118242674,-500.0,0.00017,7]
[404413751,1770118242683,-500.0,0.00017,7]
[404413752,1770118242692,-500.0,0.00017,7]
[404413753,1770118242702,-500.0,0.00017,7]
[404413754,1770118242711,-500.0,0.00017,7]
[404413755,1770118242721,-500.0,0.00017,7]
[404413756,1770118242731,-500.0,0.00017,7]
[404413757,1770118242741,-500.0,0.00017,7]
[404413758,1770118242751,-500.0,0.00017,7]
[404413759,1770118242760,-500.0,0.00017,7]
[404413760,1770118242960,-500.0,0.00017,7]
[404413761,1770118242969,-500.0,0.00017,7]
[404413762,1770118242978,-500.0,0.00017,7]
[404413763,1770118242988,-500.0,0.00017,7]
[404413764,1770118242997,-500.0,0.00017,7]
[404413765,1770118243007,-500.0,0.00017,7]
[404413766,1770118243016,-500.0,0.00017,7]
[404413767,1770118243026,-500.0,0.00017,7]
[404413768,1770118243035,-500.0,0.00017,7]
[404413769,1770118243044,-404.8,0.00017,7]
[404413770,1770118243053,-500.0,0.00017,7]
[404413771,1770118243062,-500.0,0.00017,7]
[404413772,1770118243072,-160.0,0.00017,7]
[404413773,1770118243080,-500.0,0.00017,7]
[404413774,1770118243090,-500.0,0.00017,7]
[404413775,1770118243099,-500.0,0.00017,7]
[404413776,1770118243108,-500.0,0.00017,7]
[404413777,1770118243119,-500.0,0.00017,7]
[404413778,1770118243128,-500.0,0.00017,7]
[404413779,1770118243138,-500.0,0.00017,7]
[404413780,1770118243147,-500.0,0.00017,7]
[404413781,1770118243156,-500.0,0.00017,7]
[404413782,1770118243165,-500.0,0.00017,7]
[404413783,1770118243175,-500.0,0.00017,7]
[404413784,1770118243184,-500.0,0.00017,7]
[404413785,1770118243193,-500.0,0.00017,7]
[404413786,1770118243202,-500.0,0.00017,7]
[404413787,1770118243213,-500.0,0.00017,7]
[404413788,1770118243222,-500.0,0.00017,7]
[404413790,1770118243231,-500.0,0.00017,7]
[404413792,1770118243240,-500.0,0.00017,7]
[404413793,1770118243249,-500.0,0.00017,7]
[404413794,1770118243259,-500.0,0.00017,7]
[404413796,1770118243269,-500.0,0.00017,7]
[404413799,1770118243278,-500.0,0.00017,7]
[404413802,1770118243288,-500.0,0.00017,7]
[404413805,1770118243298,-500.0,0.00017,7]
[404413809,1770118243308,-500.0,0.00017,7]
[404413811,1770118243318,-500.0,0.00017,7]
[404413812,1770118243328,-500.0,0.00017,7]
[404413813,1770118243341,-500.0,0.00017,7]
[404413814,1770118243351,-500.0,0.00017,7]
[404413815,1770118243362,-500.0,0.00017,7]
[404413816,1770118243377,-500.0,0.00017,7]
[404413818,1770118243388,-500.0,0.00017,7]
[404413819,1770118243397,-500.0,0.00017,7]
[404413820,1770118243407,-500.0,0.00017,7]
[404413821,1770118243417,-500.0,0.00017,7]
[404413822,1770118243426,-500.0,0.00017,7]
[404413823,1770118243437,-500.0,0.00017,7]
[404413824,1770118243446,-500.0,0.00017,7]
[404413825,1770118243456,-500.0,0.00017,7]
[404413826,1770118243465,-500.0,0.00017,7]
[404413827,1770118243476,-500.0,0.00017,7]
[404413828,1770118243485,-166.51,0.00017,7]
[404413829,1770118243497,-500.0,0.00017,7]
[404413830,1770118243506,-500.0,0.00017,7]
[404413831,1770118243515,-160.0,0.00017,7]
[404413832,1770118243526,-1500.0,0.00017,2]
[404413833,1770118243536,-563679.11936818,0.00017,2]
[404413834,1770118243546,-160.0,0.00017,2]
[404413835,1770118243555,-346.92554585,0.00017017,2]
[404413836,1770118243565,-599.60298507,0.00017018,2]
[404413837,1770118243574,-747.8093786,0.00017018,2]
[404413838,1770118243583,-200.0,0.00017019,2]
[404413839,1770118243592,-209.40437684,0.00017019,2]
[404413840,1770118243602,-948.853345,0.00017096,2]
[404413841,1770118243612,-1000.0,0.00017112,2]
[404413842,1770118243621,-5408.27662586,0.00017133,2]
[404413843,1770118243631,-1100.0,0.00017178,7]
[404413844,1770118243640,-948.853345,0.00017178,2]
[404413845,1770118243650,-469.67,0.00017178,2]
[404413846,1770118243659,-469.67,0.00017178,2]
[404413847,1770118243668,-469.67,0.00017178,2]
[404413848,1770118243677,-469.67,0.00017178,2]
[404413849,1770118243686,-469.67,0.00017178,2]
[404413850,1770118243696,-948.853345,0.00017233,2]
[404413851,1770118243706,-200.0,0.00017243,2]
[404413852,1770118243715,-1000.0,0.0001726,2]
[404413853,1770118243725,-200.0,0.00017313,2]
[404413854,1770118243735,-948.853345,0.00017315,2]
[404413855,1770118243745,-1233.94,0.00017325,2]
[404413856,1770118243754,-1233.94,0.00017325,2]
[404413857,1770118243764,-1233.94,0.00017325,2]
[404413858,1770118243773,-1663.9029,0.00017341,2]
[404413859,1770118243782,-469.67,0.00017368,2]
[404413860,1770118243791,-150.0,0.00017368,2]
[404413861,1770118243800,-948.853345,0.0001737,2]
[404413862,1770118243809,-1271.0,0.00017373,2]
[404413863,1770118243819,-150.0,0.00017373,2]
[404413864,1770118243829,-1205.0,0.00017373,2]
[404413865,1770118243838,-917.0,0.00017373,2]
[404413866,1770118243848,-2300.0,0.000174,6]
[404413867,1770118243857,-1500.0,0.00017452,7]
[404413868,1770118243867,-948.853345,0.00017452,2]
[404413869,1770118243876,-1500.0,0.000175,2]
[404413870,1770118243886,-52248.952038,0.000175,3]
[404413871,1770118243895,-46533.52353158,0.000175,2]
[404413872,1770118243904,-2300.0,0.000175,6]
[404413873,1770118243913,-948.853345,0.00017507,2]
[404413874,1770118243922,-1000.0,0.00017534,2]
[404413875,1770118243932,-200.0,0.00017567,2]
[404413876,1770118243941,-217.15233878,0.00017567,2]
[404413877,1770118243950,-200.0,0.00017582,2]
[404413878,1770118243960,-948.853345,0.00017589,2]
[404413879,1770118243971,-2300.0,0.000176,6]
[404413880,1770118243981,-293.9372811,0.0001764,2]
[404413881,1770118243990,-948.853345,0.00017644,2]
[404413882,1770118244005,-7840.3846942,0.00017687,2]
[404413883,1770118244017,-2300.0,0.000177,6]
[404413884,1770118244026,-200.0,0.00017708,2]
[404413885,1770118244035,-1000.0,0.00017709,2]
[404413886,1770118244044,-800.0,0.00017726,7]
[404413887,1770118244053,-948.853345,0.00017726,2]
[404413888,1770118244062,-150.0,0.00017727,2]
[404413889,1770118244071,-150.0,0.00017727,2]
[404413890,1770118244081,-1000.0,0.0001775,2]
[404413891,1770118244090,-1000.0,0.00017767,2]
[404413892,1770118244099,-1000.0,0.00017773,2]
[404413893,1770118244108,-150.0,0.00017774,2]
[404413894,1770118244118,-948.853345,0.00017781,2]
[404413895,1770118244127,-2970.0,0.000178,6]
[404413896,1770118244136,-1000.0,0.00017808,2]
[404413897,1770118244145,-150.0,0.00017812,2]
[404413898,1770118244154,-157.95285948,0.00017815,2]
[404413899,1770118244163,-5888.0,0.00017818,2]
[404413900,1770118244174,-457.87,0.00017819,17]
[404413901,1770118244183,-2000.0,0.0001782,2]
[404413902,1770118244193,-2000.0,0.0001782,2]
[404413903,1770118244202,-983.42551089,0.00017824,2]
[404413904,1770118244211,-1000.0,0.00017837,2]
[404413905,1770118244221,-150.0,0.00017847,2]
[404413906,1770118244231,-1000.0,0.00017856,2]
[404413907,1770118244241,-200.0,0.00017856,2]
[404413908,1770118244251,-948.853345,0.00017863,2]
[404413909,1770118244261,-1000.0,0.00017869,2]
[404413910,1770118244270,-25000.0,0.00017882,3]
[404413911,1770118244279,-25000.0,0.00017891,3]
[404413912,1770118244288,-150.01122841,0.00017892,2]
[404413913,1770118244298,-5000.0,0.000179,2]
[404413914,1770118244307,-25000.0,0.000179,3]
[404413915,1770118244317,-50996.65745629,0.000179,2]
[404413916,1770118244326,-5408.27662586,0.000179,2]
[404413918,1770118244339,-267.46801116,0.000179,2]
[404413920,1770118244350,-2662.46744209,0.000179,2]
[404413921,1770118244360,-194.87435744,0.000179,2]
[404413922,1770118244370,-500.0,0.000179,2]
[404413923,1770118244380,-500.0,0.000179,2]
[404413924,1770118244389,-500.0,0.000179,2]
[404413925,1770118244399,-500.0,0.000179,2]
[404413926,1770118244410,-500.0,0.000179,2]
[404413928,1770118244419,-500.0,0.000179,2]
[404413929,1770118244428,-500.0,0.000179,2]
[404413930,1770118244437,-500.0,0.000179,2]
[404413931,1770118244446,-500.0,0.000179,2]
[404413932,1770118244454,-500.0,0.000179,2]
[404413933,1770118244463,-500.0,0.000179,2]
[404413934,1770118244472,-500.0,0.000179,2]
[404413935,1770118244481,-500.0,0.000179,2]
[404413936,1770118244490,-500.0,0.000179,2]
[404413937,1770118244498,-500.0,0.000179,2]
[404413938,1770118244507,-500.0,0.000179,2]
[404413939,1770118244516,-329.15243557,0.000179,2]
[404413940,1770118244525,-18596.0,0.000179,2]
[404413941,1770118244534,-150.0,0.00017914,2]
[404413942,1770118244544,-1000.0,0.00017915,2]
[404413943,1770118244553,-1000.0,0.00017915,2]
[404413944,1770118244562,-171.0,0.00017918,2]
[404413945,1770118244571,-5888.0,0.00017921,2]
[404413946,1770118244580,-171.0,0.00017946,2]
[404413947,1770118244589,-1000.0,0.00017952,2]
[404413948,1770118244598,-150.0,0.00017961,2]
[404413949,1770118244608,-150.0,0.00017967,2]
[404413950,1770118244617,-400.7491143,0.0001797,2]
[404413951,1770118244627,-171.0,0.00017973,2]
[404413952,1770118244636,-1000.0,0.00017979,2]
[404413953,1770118244645,-500.0,0.00017982,2]
[404413954,1770118244654,-2888.05336964,0.0001799,3]
[404413955,1770118244664,-6635.2220609,0.0001799,2]
[404413956,1770118244673,-151.0,0.00017997,2]
[404413957,1770118244682,-1800.0,0.00017999,3]
[404413958,1770118244691,-300.0,0.00017999,2]
[404413959,1770118244699,-300.0,0.00017999,2]
[404413960,1770118244708,-300.0,0.00017999,2]
[404413961,1770118244718,-457.87,0.00017999,18]
[404413962,1770118244728,-457.87,0.00017999,19]
[404413963,1770118244738,-457.87,0.00017999,20]
[404413964,1770118244746,-457.87,0.00017999,21]
[404413965,1770118244755,-457.87,0.00017999,21]
[404413966,1770118244765,-457.87,0.00017999,21]
[404413967,1770118244774,-457.87,0.00017999,21]
[404413968,1770118244783,-458.03207191,0.00017999,21]
[404413969,1770118244792,-2030817.10733815,0.00018,2]
[404413972,1770118245247,-950.98,0.00018,2]
[404413973,1770118245456,-1410.0,0.00016331,2]
[404413974,1770118245467,-67425.65162344,0.00018,2]